{"text_format":"1","workbook":"xlsx","n_sheets":1,"sheets":["EDADES"],"not_rendered":{"charts":0,"images":1,"macros":1,"external_links":0,"defined_names":39,"comments":0,"pivot_tables":0},"unopened":[],"bounds":{"document_bytes":16777216,"sheet_cells":100000,"rows_first":2000,"rows_last":500,"rows_between":2000,"halvings":0,"cell_chars":16384,"cell_head_chars":4096},"cells_cut":0,"cells_raw":0,"read":"whole","date_system":"1900"}

{"sheet":"EDADES","index":0,"n_rows":57,"n_cols":45,"rows_kept":57,"cut":false,"hidden":false,"merged":[[27,34,27,42]]}
[]
["No.","NOMBRES:","PAIS",null,null,null,null,null,null,null,null,null,null,null,null,null,null,null,"EDAD",null,null,null,null,null,null,null,null,null,null,null,null,null,null,null,"NOMBRES:","PAIS","EDAD",null,"NOMBRES:","PAIS","EDAD",null,"NOMBRES:","PAIS","EDAD"]
[1,"Juan Hernandez.","ARGENTINA",null,null,null,null,null,null,null,null,null,null,null,null,null,null,null,21,null,null,null,null,null,null,null,null,null,null,null,null,null,null,null,{"$f":"INDEX(EDADES!$B$3:$B$57,MATCH(AK3,INDEX(EDADES!$S$3:$S$57+ROW(EDADES!$S$3:$S$57)/1000000,0),0))","v":0},{"$f":"INDEX(EDADES!$C$3:$C$57,MATCH(AK3,INDEX(EDADES!$S$3:$S$57+ROW(EDADES!$S$3:$S$57)/1000000,0),0))","v":0},{"$f":"SMALL(INDEX(EDADES!$S$3:$S$57+ROW(EDADES!$S$3:$S$57)/1000000,0),ROW(EDADES!S1))","v":1.9000000000000001E-5},null,{"$f":"IF(AO3=\"\",\"\",INDEX($B$3:$B$57,MATCH(AO3,INDEX($S$3:$S$57+ROW($S$3:$S$57)/10^10,),0)))","v":"Davis Arrechavala."},{"$f":"IF(AO3=\"\",\"\",INDEX($C$3:$C$57,MATCH(AO3,INDEX($S$3:$S$57+ROW($S$3:$S$57)/10^10,),0)))","v":"BELICE"},{"$f":"IFERROR(SMALL(INDEX($S$3:$S$57+ROW($S$3:$S$57)/10^10,),COUNTIF($S$3:$S$57,0)+ROW(A1)),\"\")","v":13.0000000057},null,"Davis Arrechavala.","BELICE",13]
[2,"Luis Felipe Hurtado.","BRASIL",null,null,null,null,null,null,null,null,null,null,null,null,null,null,null,15,null,null,null,null,null,null,null,null,null,null,null,null,null,null,null,{"$f":"INDEX(EDADES!$B$3:$B$57,MATCH(AK4,INDEX(EDADES!$S$3:$S$57+ROW(EDADES!$S$3:$S$57)/1000000,0),0))","v":0},{"$f":"INDEX(EDADES!$C$3:$C$57,MATCH(AK4,INDEX(EDADES!$S$3:$S$57+ROW(EDADES!$S$3:$S$57)/1000000,0),0))","v":0},{"$f":"SMALL(INDEX(EDADES!$S$3:$S$57+ROW(EDADES!$S$3:$S$57)/1000000,0),ROW(EDADES!S2))","v":2.0000000000000002E-5},null,{"$f":"IF(AO4=\"\",\"\",INDEX($B$3:$B$57,MATCH(AO4,INDEX($S$3:$S$57+ROW($S$3:$S$57)/10^10,),0)))","v":"Luis Felipe Hurtado."},{"$f":"IF(AO4=\"\",\"\",INDEX($C$3:$C$57,MATCH(AO4,INDEX($S$3:$S$57+ROW($S$3:$S$57)/10^10,),0)))","v":"BRASIL"},{"$f":"IFERROR(SMALL(INDEX($S$3:$S$57+ROW($S$3:$S$57)/10^10,),COUNTIF($S$3:$S$57,0)+ROW(A2)),\"\")","v":15.0000000004},null,"Juan Merlo.","COLOMBIA",14]
[3,"Carlos Peña.","GUATEMALA",null,null,null,null,null,null,null,null,null,null,null,null,null,null,null,17,null,null,null,null,null,null,null,null,null,null,null,null,null,null,null,{"$f":"INDEX(EDADES!$B$3:$B$57,MATCH(AK5,INDEX(EDADES!$S$3:$S$57+ROW(EDADES!$S$3:$S$57)/1000000,0),0))","v":"Juan Merlo."},{"$f":"INDEX(EDADES!$C$3:$C$57,MATCH(AK5,INDEX(EDADES!$S$3:$S$57+ROW(EDADES!$S$3:$S$57)/1000000,0),0))","v":"COLOMBIA"},{"$f":"SMALL(INDEX(EDADES!$S$3:$S$57+ROW(EDADES!$S$3:$S$57)/1000000,0),ROW(EDADES!S3))","v":2.0999999999999999E-5},null,"Carlos Peña.","GUATEMALA",17.000000000499998,null,"Luis Felipe Hurtado.","BRASIL",15]
[4,"Joseph Lanuza.","COSTA RICA",null,null,null,null,null,null,null,null,null,null,null,null,null,null,null,20,null,null,null,null,null,null,null,null,null,null,null,null,null,null,null,{"$f":"INDEX(EDADES!$B$3:$B$57,MATCH(AK6,INDEX(EDADES!$S$3:$S$57+ROW(EDADES!$S$3:$S$57)/1000000,0),0))","v":0},{"$f":"INDEX(EDADES!$C$3:$C$57,MATCH(AK6,INDEX(EDADES!$S$3:$S$57+ROW(EDADES!$S$3:$S$57)/1000000,0),0))","v":0},{"$f":"SMALL(INDEX(EDADES!$S$3:$S$57+ROW(EDADES!$S$3:$S$57)/1000000,0),ROW(EDADES!S4))","v":2.1999999999999999E-5},null,"Joseph Lanuza.","COSTA RICA",20.0000000006,null,"Carlos Peña.","GUATEMALA",17]
[5,"Misael Perez.","ITALIA",null,null,null,null,null,null,null,null,null,null,null,null,null,null,null,22,null,null,null,null,null,null,null,null,null,null,null,null,null,null,null,{"$f":"INDEX(EDADES!$B$3:$B$57,MATCH(AK7,INDEX(EDADES!$S$3:$S$57+ROW(EDADES!$S$3:$S$57)/1000000,0),0))","v":0},{"$f":"INDEX(EDADES!$C$3:$C$57,MATCH(AK7,INDEX(EDADES!$S$3:$S$57+ROW(EDADES!$S$3:$S$57)/1000000,0),0))","v":0},{"$f":"SMALL(INDEX(EDADES!$S$3:$S$57+ROW(EDADES!$S$3:$S$57)/1000000,0),ROW(EDADES!S5))","v":2.3E-5},null,"Juan Hernandez.","ARGENTINA",21.000000000299998,null,"Joseph Lanuza.","COSTA RICA",20]
[6,"Kenneth Lainez.","FRANCIA",null,null,null,null,null,null,null,null,null,null,null,null,null,null,null,25,null,null,null,null,null,null,null,null,null,null,null,null,null,null,null,{"$f":"INDEX(EDADES!$B$3:$B$57,MATCH(AK8,INDEX(EDADES!$S$3:$S$57+ROW(EDADES!$S$3:$S$57)/1000000,0),0))","v":0},{"$f":"INDEX(EDADES!$C$3:$C$57,MATCH(AK8,INDEX(EDADES!$S$3:$S$57+ROW(EDADES!$S$3:$S$57)/1000000,0),0))","v":0},{"$f":"SMALL(INDEX(EDADES!$S$3:$S$57+ROW(EDADES!$S$3:$S$57)/1000000,0),ROW(EDADES!S6))","v":2.4000000000000001E-5},null,"Justin Gaitan.","PUERTO RICO",21.000000001,null,"Juan Hernandez.","ARGENTINA",21]
[7,"Juan B. Garcia.","JAMAICA",null,null,null,null,null,null,null,null,null,null,null,null,null,null,null,23,null,null,null,null,null,null,null,null,null,null,null,null,null,null,null,{"$f":"INDEX(EDADES!$B$3:$B$57,MATCH(AK9,INDEX(EDADES!$S$3:$S$57+ROW(EDADES!$S$3:$S$57)/1000000,0),0))","v":0},{"$f":"INDEX(EDADES!$C$3:$C$57,MATCH(AK9,INDEX(EDADES!$S$3:$S$57+ROW(EDADES!$S$3:$S$57)/1000000,0),0))","v":0},{"$f":"SMALL(INDEX(EDADES!$S$3:$S$57+ROW(EDADES!$S$3:$S$57)/1000000,0),ROW(EDADES!S7))","v":2.5000000000000001E-5},null,"Misael Perez.","ITALIA",22.000000000699998,null,"Justin Gaitan.","PUERTO RICO",21]
[8,"Justin Gaitan.","PUERTO RICO",null,null,null,null,null,null,null,null,null,null,null,null,null,null,null,21,null,null,null,null,null,null,null,null,null,null,null,null,null,null,null,{"$f":"INDEX(EDADES!$B$3:$B$57,MATCH(AK10,INDEX(EDADES!$S$3:$S$57+ROW(EDADES!$S$3:$S$57)/1000000,0),0))","v":0},{"$f":"INDEX(EDADES!$C$3:$C$57,MATCH(AK10,INDEX(EDADES!$S$3:$S$57+ROW(EDADES!$S$3:$S$57)/1000000,0),0))","v":0},{"$f":"SMALL(INDEX(EDADES!$S$3:$S$57+ROW(EDADES!$S$3:$S$57)/1000000,0),ROW(EDADES!S8))","v":2.5999999999999998E-5},null,"Juan B. Garcia.","JAMAICA",23.000000000899998,null,"Misael Perez.","ITALIA",22]
[null,"Jose Morales.","CUBA",null,null,null,null,null,null,null,null,null,null,null,null,null,null,null,36,null,null,null,null,null,null,null,null,null,null,null,null,null,null,null,null,null,null,null,"Kenneth Lainez.","FRANCIA",25.0000000008]
[null,"Fernando Blandon.","REP. DOMINICANA",null,null,null,null,null,null,null,null,null,null,null,null,null,null,null,30,null,null,null,null,null,null,null,null,null,null,null,null,null,null,null,null,null,null,null,"Jose Aviles.","MATAGALPA",25.0000000016]
[null,"Jefferson Lopez.","ARGENTINA",null,null,null,null,null,null,null,null,null,null,null,null,null,null,null,40,null,null,null,null,null,null,null,null,null,null,null,null,null,null,null,null,null,null,null,"Fernando Blandon.","REP. DOMINICANA",30.0000000012]
[null,"Francisco Corea.","CUBA",null,null,null,null,null,null,null,null,null,null,null,null,null,null,null,30,null,null,null,null,null,null,null,null,null,null,null,null,null,null,null,null,null,null,null,"Francisco Corea.","CUBA",30.0000000014]
[null,"Geovanny Centeno.","COLOMBIA",null,null,null,null,null,null,null,null,null,null,null,null,null,null,null,32,null,null,null,null,null,null,null,null,null,null,null,null,null,null,null,null,null,null,null,"Geovanny Centeno.","COLOMBIA",32.000000001499998]
[9,"Jose Aviles.","MATAGALPA",null,null,null,null,null,null,null,null,null,null,null,null,null,null,null,25,null,null,null,null,null,null,null,null,null,null,null,null,null,null,null,null,null,null,null,"Jasson Laguna.","EL SALVADOR",35.000000001700002]
[10,"Jasson Laguna.","EL SALVADOR",null,null,null,null,null,null,null,null,null,null,null,null,null,null,null,35,null,null,null,null,null,null,null,null,null,null,null,null,null,null,null,null,null,null,null,"Jose Morales.","CUBA",36.000000001099998]
[11,"Mario Sandoval.","NICARAGUA",null,null,null,null,null,null,null,null,null,null,null,null,null,null,null,40,null,null,null,null,null,null,null,null,null,null,null,null,null,null,null,null,null,null,null,"Jefferson Lopez.","ARGENTINA",40.000000001300002]
[12,0,0,null,null,null,null,null,null,null,null,null,null,null,null,null,null,null,0,null,null,null,null,null,null,null,null,null,null,null,null,null,null,null,null,null,null,null,"Mario Sandoval.","NICARAGUA",40.000000001799997]
[13,0,0,null,null,null,null,null,null,null,null,null,null,null,null,null,null,null,0,null,null,null,null,null,null,null,null,null,null,null,null,null,null,null,null,null,null,null,"","",""]
[14,"Juan Merlo.","COLOMBIA",null,null,null,null,null,null,null,null,null,null,null,null,null,null,null,0,null,null,null,null,null,null,null,null,null,null,null,null,null,null,null,null,null,null,null,"","",""]
[15,0,0,null,null,null,null,null,null,null,null,null,null,null,null,null,null,null,0,null,null,null,null,null,null,null,null,null,null,null,null,null,null,null,null,null,null,null,"","",""]
[16,0,0,null,null,null,null,null,null,null,null,null,null,null,null,null,null,null,0,null,null,null,null,null,null,null,null,null,null,null,null,null,null,null,null,null,null,null,"","",""]
[17,0,0,null,null,null,null,null,null,null,null,null,null,null,null,null,null,null,0,null,null,null,null,null,null,null,null,null,null,null,null,null,null,null,null,null,null,null,"","",""]
[18,0,0,null,null,null,null,null,null,null,null,null,null,null,null,null,null,null,0,null,null,null,null,null,null,null,null,null,null,null,null,null,null,null,null,null,null,null,"","",""]
[19,0,0,null,null,null,null,null,null,null,null,null,null,null,null,null,null,null,0,null,null,null,null,null,null,null,null,null,null,null,null,null,null,null,null,null,null,null,"","",""]
[20,0,0,null,null,null,null,null,null,null,null,null,null,null,null,null,null,null,0]
[21,0,0,null,null,null,null,null,null,null,null,null,null,null,null,null,null,null,0]
[22,0,0,null,null,null,null,null,null,null,null,null,null,null,null,null,null,null,0]
[23,0,0,null,null,null,null,null,null,null,null,null,null,null,null,null,null,null,0]
[24,0,0,null,null,null,null,null,null,null,null,null,null,null,null,null,null,null,0]
[25,0,0,null,null,null,null,null,null,null,null,null,null,null,null,null,null,null,0]
[26,0,0,null,null,null,null,null,null,null,null,null,null,null,null,null,null,null,0]
[27,0,0,null,null,null,null,null,null,null,null,null,null,null,null,null,null,null,0]
[28,0,0,null,null,null,null,null,null,null,null,null,null,null,null,null,null,null,0]
[29,0,0,null,null,null,null,null,null,null,null,null,null,null,null,null,null,null,0]
[30,0,0,null,null,null,null,null,null,null,null,null,null,null,null,null,null,null,0]
[31,0,0,null,null,null,null,null,null,null,null,null,null,null,null,null,null,null,0]
[32,0,0,null,null,null,null,null,null,null,null,null,null,null,null,null,null,null,0]
[33,0,0,null,null,null,null,null,null,null,null,null,null,null,null,null,null,null,0]
[34,0,0,null,null,null,null,null,null,null,null,null,null,null,null,null,null,null,0]
[35,0,0,null,null,null,null,null,null,null,null,null,null,null,null,null,null,null,0]
[36,0,0,null,null,null,null,null,null,null,null,null,null,null,null,null,null,null,0]
[37,0,0,null,null,null,null,null,null,null,null,null,null,null,null,null,null,null,0]
[38,0,0,null,null,null,null,null,null,null,null,null,null,null,null,null,null,null,0]
[39,0,0,null,null,null,null,null,null,null,null,null,null,null,null,null,null,null,0]
[40,0,0,null,null,null,null,null,null,null,null,null,null,null,null,null,null,null,0]
[41,0,0,null,null,null,null,null,null,null,null,null,null,null,null,null,null,null,0]
[42,0,0,null,null,null,null,null,null,null,null,null,null,null,null,null,null,null,0]
[43,0,0,null,null,null,null,null,null,null,null,null,null,null,null,null,null,null,0]
[44,0,0,null,null,null,null,null,null,null,null,null,null,null,null,null,null,null,0]
[45,0,0,null,null,null,null,null,null,null,null,null,null,null,null,null,null,null,0]
[46,0,0,null,null,null,null,null,null,null,null,null,null,null,null,null,null,null,0]
[47,0,0,null,null,null,null,null,null,null,null,null,null,null,null,null,null,null,0]
[48,0,0,null,null,null,null,null,null,null,null,null,null,null,null,null,null,null,0]
[49,0,0,null,null,null,null,null,null,null,null,null,null,null,null,null,null,null,0]
[50,"Davis Arrechavala.","BELICE",null,null,null,null,null,null,null,null,null,null,null,null,null,null,null,13]